bitfinex/quotes_BTCUSD_20250523
["timestamp","ask_amount","ask_price","bid_price","bid_amount"]
[1747962762388,0.41430365,111310.0,111300.0,0.001]
[1747962762600,0.27873292,111310.0,111300.0,0.001]
[1747962767178,0.27873292,111310.0,111300.0,0.341]
[1747962768102,0.27173292,111310.0,111300.0,0.34]
[1747962768298,0.27473292,111310.0,111300.0,0.34]
[1747962772485,0.27473292,111310.0,111300.0,0.3609]
[1747962772732,0.27473292,111310.0,111300.0,0.3811]
[1747962774835,0.27473292,111310.0,111300.0,0.31038]
[1747962777868,0.27473292,111310.0,111300.0,0.69814]
[1747962780154,0.27473292,111310.0,111300.0,1.03814]
[1747962787686,0.27473292,111310.0,111300.0,1.40802]
[1747962794065,0.27473292,111310.0,111300.0,0.76886]
[1747962794210,0.27473292,111310.0,111300.0,1.40802]
[1747962797205,0.27473292,111310.0,111300.0,0.72776]
[1747962797556,0.27473292,111310.0,111300.0,1.36692]
[1747962797557,0.31743292,111310.0,111300.0,1.36692]
[1747962797779,0.31743292,111310.0,111300.0,1.02692]
[1747962798158,0.27473292,111310.0,111300.0,1.02692]
[1747962800289,0.27473292,111310.0,111300.0,0.75764]
[1747962800488,0.27473292,111310.0,111300.0,1.02692]
[1747962802743,0.17974141,111280.0,111270.0,0.34]
[1747962803059,0.17974141,111280.0,111270.0,1.563242]
[1747962804013,0.17974141,111280.0,111270.0,1.832522]
[1747962804321,0.17974141,111280.0,111270.0,1.834522]
[1747962805135,0.17974141,111280.0,111270.0,2.222242]
[1747962805741,0.17974141,111280.0,111270.0,2.265342]
[1747962806991,0.17974141,111280.0,111270.0,1.925342]
[1747962808124,0.17974141,111280.0,111270.0,1.72039]
[1747962808317,0.17974141,111280.0,111270.0,2.06039]
[1747962811599,0.17974141,111280.0,111270.0,0.836069]
[1747962812663,0.17974141,111280.0,111270.0,1.105349]
[1747962812922,0.17974141,111280.0,111270.0,0.836069]
[1747962813076,0.17974141,111280.0,111270.0,1.105349]
[1747962815185,0.19773446,111260.0,111250.0,0.0214]
[1747962815411,0.19773446,111260.0,111250.0,1.564829]
[1747962815611,0.19773446,111260.0,111250.0,1.904829]
[1747962816585,0.19773446,111260.0,111250.0,1.90496593]
[1747962817216,0.19873446,111260.0,111250.0,1.90896593]
[1747962817427,0.19873446,111260.0,111250.0,1.90496593]
[1747962817927,0.19873446,111260.0,111250.0,1.86316593]
[1747962818132,0.19873446,111260.0,111250.0,1.22492593]
[1747962818348,0.21963446,111260.0,111250.0,1.86320593]
[1747962818555,0.21963446,111260.0,111250.0,1.22492593]
[1747962818835,0.19873446,111260.0,111250.0,1.86320593]
[1747962819839,0.19873446,111260.0,111250.0,1.61545293]
[1747962820875,0.23973446,111260.0,111250.0,1.61549293]
[1747962821601,0.23973446,111260.0,111250.0,0.97717293]
[1747962821804,0.23973446,111260.0,111250.0,1.61549293]
[1747962823232,0.19873446,111260.0,111250.0,1.61549293]
[1747962824453,0.19873446,111260.0,111250.0,1.61553293]
[1747962825016,0.21973446,111260.0,111250.0,1.61553293]
[1747962825189,0.21973446,111260.0,111250.0,1.27553293]
[1747962825388,0.21959852,111260.0,111250.0,1.27553293]
[1747962827791,0.24019852,111260.0,111250.0,1.27553293]
[1747962831083,0.19859852,111260.0,111250.0,1.27553293]
[1747962835476,0.19859852,111260.0,111250.0,0.63717293]
[1747962835684,0.19859852,111260.0,111250.0,1.27465293]
[1747962839266,0.19859852,111260.0,111250.0,1.61465293]
[1747962841618,0.1797576,111270.0,111250.0,1.76317479]
[1747962841835,0.17974141,111280.0,111270.0,0.34]
[1747962842047,0.17974141,111280.0,111270.0,0.65036]
[1747962842481,0.17974141,111280.0,111270.0,0.877996]
[1747962842682,0.17974141,111280.0,111270.0,1.05773896]
[1747962843671,0.18174141,111280.0,111270.0,1.05773896]
[1747962843869,0.18174141,111280.0,111270.0,1.06672602]
[1747962844952,0.18174141,111280.0,111270.0,0.877996]
[1747962845160,0.18174141,111280.0,111270.0,1.03733896]
[1747962845360,0.18174141,111280.0,111270.0,1.04632602]
[1747962845706,0.17974141,111280.0,111270.0,1.04632602]
[1747962846006,0.17974141,111280.0,111270.0,1.04732602]
[1747962846431,0.17974141,111280.0,111270.0,1.056313]
[1747962846855,0.19769907,111280.0,111270.0,1.11518696]
[1747962847075,0.00898561,111280.0,111270.0,1.2137191]
[1747962847284,0.03594356,111280.0,111270.0,1.2137191]
[1747962848189,0.04492982,111280.0,111270.0,1.2137191]
[1747962848797,0.22465736,111280.0,111270.0,1.21371926]
[1747962849012,0.21567159,111280.0,111270.0,1.5552157]
[1747962849315,0.20668558,111280.0,111270.0,1.56420252]
[1747962851582,0.20553983,111280.0,111270.0,1.56420252]
[1747962852696,0.20553983,111280.0,111270.0,1.5552157]
[1747962852837,0.20553983,111280.0,111270.0,1.5642026]
[1747962854305,0.19769941,111280.0,111270.0,1.52622872]
[1747962854512,0.18871315,111280.0,111270.0,0.948706]
[1747962854714,0.23001315,111280.0,111270.0,1.586026]
[1747962856709,0.23001315,111280.0,111270.0,0.948706]
[1747962856710,0.22951315,111280.0,111270.0,0.948706]
[1747962856890,0.22951315,111280.0,111270.0,1.586026]
[1747962858070,0.22951315,111280.0,111270.0,1.316746]
[1747962858241,0.22951315,111280.0,111270.0,1.586026]
[1747962858477,0.22951315,111280.0,111270.0,0.948706]
[1747962858692,0.22951315,111280.0,111270.0,0.99779]
[1747962858693,0.31905871,111280.0,111270.0,0.99779]
[1747962858896,0.31905871,111280.0,111270.0,1.33779]
[1747962859100,0.31905871,111280.0,111270.0,0.99779]
[1747962859519,0.31905871,111280.0,111270.0,1.06851]
[1747962859690,0.31905871,111280.0,111270.0,1.33779]
[1747962860772,0.31905871,111280.0,111270.0,1.33679]
[1747962862613,0.32005871,111280.0,111270.0,1.33679]
[1747962865226,0.32005871,111280.0,111270.0,1.06751]
[1747962865421,0.32005871,111280.0,111270.0,1.33679]
[1747962866467,0.32005871,111280.0,111270.0,1.33603]
[1747962866886,0.32005871,111280.0,111270.0,1.584266]
[1747962867068,0.23051315,111280.0,111270.0,1.584266]
[1747962868802,0.18971315,111280.0,111270.0,1.584266]
[1747962869012,0.21361315,111280.0,111270.0,1.584266]
[1747962869765,0.23651315,111280.0,111270.0,1.584266]
[1747962872330,0.18971315,111280.0,111270.0,1.584266]
[1747962873315,0.18971315,111280.0,111270.0,1.607166]
[1747962874212,0.18971315,111280.0,111270.0,1.631466]
[1747962877363,0.18971315,111280.0,111270.0,1.607166]
[1747962878658,0.18971315,111280.0,111270.0,1.584266]
[1747962878858,0.18971315,111280.0,111270.0,1.76400896]
[1747962879064,0.18072681,111280.0,111270.0,1.631966]
[1747962879262,0.00898504,111290.0,111280.0,0.35797219]
[1747962879495,0.17971066,111290.0,111280.0,0.633636]
[1747962879674,0.17971066,111290.0,111280.0,0.947686]
[1747962880110,0.18869603,111290.0,111280.0,1.13639915]
[1747962880320,0.17971066,111290.0,111280.0,1.13639915]
[1747962880474,0.17971066,111290.0,111280.0,1.14538541]
[1747962881425,0.18071066,111290.0,111280.0,1.14538541]
[1747962882811,0.17971066,111290.0,111280.0,1.14538541]
[1747962883009,0.17971066,111290.0,111280.0,0.947686]
[1747962883376,0.22761066,111290.0,111280.0,1.586166]
[1747962884569,0.22761066,111290.0,111280.0,0.949686]
[1747962884781,0.22761066,111290.0,111280.0,1.586166]
[1747962885650,0.22761066,111290.0,111280.0,1.316886]
[1747962885803,0.22761066,111290.0,111280.0,1.586166]
[1747962888770,0.22761066,111290.0,111280.0,1.316886]
[1747962888978,0.31715622,111290.0,111280.0,1.06865]
[1747962889181,0.31715622,111290.0,111280.0,0.70145]
[1747962889410,0.31715622,111290.0,111280.0,1.33793]
[1747962889614,0.31715622,111290.0,111280.0,0.72865]
[1747962889824,0.31715622,111290.0,111280.0,0.36145]
[1747962890028,0.31715622,111290.0,111280.0,0.99793]
[1747962890202,0.31715622,111290.0,111280.0,0.99593]
[1747962890998,0.31915622,111290.0,111280.0,0.99593]
[1747962893440,0.31915622,111290.0,111280.0,0.99597]
[1747962899398,0.31915622,111290.0,111280.0,1.33597]
[1747962904156,0.6938003,111290.0,111280.0,0.35945]
[1747962904332,0.6938003,111290.0,111280.0,0.62877]
[1747962904333,0.60892659,111290.0,111280.0,0.62877]
[1747962904550,0.60892659,111290.0,111280.0,0.26932]
[1747962905356,0.60692659,111290.0,111280.0,0.26932]
[1747962905575,0.61292659,111290.0,111280.0,0.27032]
[1747962906023,0.62292659,111290.0,111280.0,0.27032]
[1747962908046,0.62292659,111290.0,111280.0,0.001]
[1747962908683,0.62292659,111290.0,111280.0,0.27036]
[1747962909894,0.34769707,111290.0,111280.0,0.27036]
[1747962910207,0.62292659,111290.0,111280.0,0.27036]
[1747962910828,0.62292659,111290.0,111280.0,0.001]
[1747962911261,0.61292659,111290.0,111280.0,0.001]
[1747962911464,0.88228659,111290.0,111280.0,0.001]
[1747962911804,0.89228659,111290.0,111280.0,0.001]
[1747962912805,0.90085326,111290.0,111280.0,0.001]
[1747962913498,0.92781826,111290.0,111280.0,0.001]
[1747962913731,1.01733977,111290.0,111280.0,0.001]
[1747962915624,0.65262874,111290.0,111280.0,0.001]
[1747962915800,0.92785826,111290.0,111280.0,0.001]
[1747962916557,0.65262874,111290.0,111280.0,0.001]
[1747962916759,0.92785826,111290.0,111280.0,0.001]
[1747962916960,0.90089326,111290.0,111280.0,0.001]
[1747962917262,0.92785826,111290.0,111280.0,0.001]
[1747962917462,0.92785826,111290.0,111230.0,0.0508]
[1747962917463,0.17979144,111240.0,111230.0,0.0508]
[1747962917657,0.269337,111240.0,111230.0,0.665476]
[1747962918654,0.269337,111240.0,111230.0,0.93692664]
[1747962919352,0.269337,111240.0,111230.0,0.41929064]
[1747962919564,0.269337,111240.0,111230.0,0.97789064]
[1747962920677,0.293737,111240.0,111230.0,0.97789064]
[1747962921837,0.269337,111240.0,111230.0,0.97793064]
[1747962922660,0.269337,111240.0,111230.0,0.00205064]
[1747962922661,0.318637,111240.0,111230.0,0.00205064]
[1747962922873,0.318637,111240.0,111230.0,0.63793064]
[1747962922874,0.39600263,111240.0,111230.0,0.63793064]
[1747962923144,0.318637,111240.0,111230.0,0.63793064]
[1747962923565,0.318637,111240.0,111230.0,0.36653064]
[1747962923777,0.318637,111240.0,111230.0,0.63593064]
[1747962924008,0.658637,111240.0,111230.0,0.63593064]
[1747962924863,0.659637,111240.0,111230.0,0.63593064]
[1747962925256,0.658637,111240.0,111230.0,0.63593064]
[1747962925979,0.661637,111240.0,111230.0,0.63593064]
[1747962931453,0.321637,111240.0,111230.0,0.63593064]
[1747962933976,0.321637,111240.0,111230.0,0.63601064]
[1747962934956,0.61140737,111240.0,111230.0,0.63601064]
[1747962939009,0.61140737,111240.0,111230.0,0.36653064]
[1747962939427,0.61140737,111240.0,111230.0,0.63601064]
[1747962939967,0.61140737,111240.0,111230.0,0.36653064]
[1747962940584,0.63043177,111240.0,111230.0,0.36653064]
[1747962941957,0.63043177,111240.0,111230.0,5.064e-05]
[1747962942160,0.71995328,111240.0,111230.0,5.064e-05]
[1747962942788,0.63043177,111240.0,111230.0,5.064e-05]
[1747962943748,0.17983994,111220.0,111210.0,0.366]
[1747962944099,0.3163855,111220.0,111210.0,0.63563276]
[1747962944331,0.3163855,111220.0,111210.0,0.64402423]
[1747962944935,0.3163855,111220.0,111210.0,0.37454423]
[1747962945164,0.3163855,111220.0,111210.0,0.64402423]
[1747962945165,0.3173855,111220.0,111210.0,0.64402423]
[1747962945806,0.3173855,111220.0,111210.0,0.37454423]
[1747962946040,0.3173855,111220.0,111210.0,0.64402423]
[1747962953821,0.45313111,111220.0,111210.0,0.64402423]
[1747962955111,0.45313111,111220.0,111210.0,0.00854423]
[1747962955245,0.45313111,111220.0,111210.0,0.64410423]
[1747962955881,0.3173855,111220.0,111210.0,0.64410423]
[1747962960763,0.3173855,111220.0,111210.0,0.37458423]
[1747962960988,0.54265262,111220.0,111210.0,0.64410423]
[1747962961193,0.45313111,111220.0,111210.0,0.64410423]
[1747962961652,0.60341757,111220.0,111210.0,0.00854423]
[1747962961828,0.61341757,111220.0,111210.0,0.00854423]
[1747962962263,0.61341757,111220.0,111210.0,0.00015276]
[1747962962685,0.34192635,111220.0,111210.0,0.00015276]
[1747962962853,0.46767196,111220.0,111210.0,0.00015276]
[1747962963064,0.33192635,111220.0,111210.0,0.00015276]
[1747962963278,0.33092635,111220.0,111210.0,0.00015276]
[1747962963631,0.33592635,111220.0,111210.0,0.00956149]
[1747962963959,0.33092635,111220.0,111210.0,0.00856149]
[1747962964301,0.47067196,111220.0,111210.0,0.00956149]
[1747962964714,0.47067196,111220.0,111210.0,0.00115276]
[1747962966231,0.33492635,111220.0,111210.0,0.36691276]
[1747962971904,0.3203855,111220.0,111210.0,0.36691276]
[1747962972472,0.2733855,111220.0,111210.0,0.36691276]
[1747962972895,0.2990855,111220.0,111210.0,0.36691276]
[1747962974142,0.3235855,111220.0,111210.0,0.36691276]
[1747962977390,0.6635855,111220.0,111210.0,0.36691276]
[1747962977616,0.2733855,111220.0,111210.0,0.36691276]
[1747962977834,0.2733855,111220.0,111210.0,0.64624876]
[1747962978043,0.18383994,111220.0,111210.0,0.98624876]
[1747962981726,0.18383994,111220.0,111210.0,0.64624876]
[1747962983355,0.18383994,111220.0,111210.0,0.98624876]
[1747962984741,0.18383994,111220.0,111210.0,1.25564876]
[1747962987025,0.18383994,111220.0,111210.0,0.98616876]
[1747962987264,0.18383994,111220.0,111210.0,1.25564876]
[1747962987880,0.18383994,111220.0,111210.0,1.25528876]
[1747962993959,0.18383994,111220.0,111210.0,0.62048876]
[1747962994156,0.18383994,111220.0,111210.0,1.25528876]
[1747963002235,0.18383994,111220.0,111210.0,0.95470876]
[1747963002433,0.18383994,111220.0,111210.0,1.22414876]
[1747963002798,0.18383994,111220.0,111210.0,1.61214876]
[1747963007357,0.18383994,111220.0,111210.0,1.40541955]
[1747963010317,0.18383994,111220.0,111210.0,1.43131955]
[1747963011977,0.18383994,111220.0,111210.0,1.40541955]
[1747963013528,0.18383994,111220.0,111210.0,1.43131955]
[1747963014369,0.18383994,111220.0,111210.0,1.42041955]
[1747963015117,0.18383994,111220.0,111210.0,1.43131955]
[1747963016052,0.18383994,111220.0,111210.0,1.40541955]
[1747963016738,0.17983994,111220.0,111210.0,1.40541955]
[1747963017111,0.18183994,111220.0,111210.0,1.40641955]
[1747963017533,0.17983994,111220.0,111210.0,1.40541955]
[1747963017713,0.18083994,111220.0,111210.0,1.40541955]
[1747963018736,0.18083994,111220.0,111210.0,1.13597955]
[1747963019085,0.22893994,111220.0,111210.0,1.40541955]
[1747963022493,0.20603994,111220.0,111210.0,1.40541955]
[1747963022699,0.20703994,111220.0,111210.0,1.40541955]
[1747963024641,0.23083994,111220.0,111210.0,0.77065955]
[1747963024860,0.23083994,111220.0,111210.0,1.40501955]
[1747963027436,0.18182377,111230.0,111210.0,1.64672584]
[1747963027636,0.20879449,111230.0,111220.0,5.74815891]
[1747963027859,0.20879449,111230.0,111220.0,5.73692043]
[1747963028270,0.20879449,111230.0,111220.0,5.75490239]
[1747963028686,0.20879449,111230.0,111220.0,5.76389325]
[1747963029054,0.01998034,111230.0,111220.0,5.77288387]
[1747963029259,0.01997986,111230.0,111220.0,5.77288387]
[1747963029468,0.0199797,111230.0,111220.0,5.78742472]
[1747963030363,0.18182215,111250.0,111240.0,0.34]
[1747963030516,0.18182215,111250.0,111240.0,6.06698]
[1747963030730,0.22982215,111250.0,111240.0,6.06698]
[1747963031515,0.22982215,111250.0,111240.0,5.85263232]
[1747963031753,0.22982215,111250.0,111240.0,5.72698]
[1747963032136,0.24558778,111230.0,111220.0,0.12024541]
[1747963032344,0.24558778,111230.0,111220.0,0.78321985]
[1747963032514,0.24558778,111230.0,111220.0,0.14889985]
[1747963032719,0.24558778,111230.0,111220.0,0.78121985]
[1747963033053,0.24558778,111230.0,111220.0,0.63432]
[1747963033608,0.24558778,111230.0,111220.0,0.63632]
[1747963034434,0.24558778,111230.0,111220.0,0.004]
[1747963034645,0.24558778,111230.0,111220.0,0.7568]
[1747963034848,0.24558778,111230.0,111220.0,1.0262]
[1747963035488,0.24558778,111230.0,111220.0,6.11886]
[1747963035958,0.24558778,111230.0,111220.0,5.1602]
[1747963038885,0.24558778,111230.0,111220.0,3.5074]
[1747963039093,0.24558778,111230.0,111220.0,1.3662]
[1747963042886,0.24558778,111230.0,111220.0,0.73192]
[1747963043068,0.24558778,111230.0,111220.0,1.36624]
[1747963044524,0.19778778,111230.0,111220.0,6.4589]
[1747963045927,0.22228778,111230.0,111220.0,6.4589]
[1747963046129,0.19778778,111230.0,111220.0,6.4589]
[1747963046306,0.19778778,111230.0,111220.0,6.54844556]
[1747963047171,0.19778778,111230.0,111220.0,6.57654556]
[1747963048006,0.19778778,111230.0,111220.0,6.77435129]
[1747963048335,0.19778778,111230.0,111220.0,6.78334207]
[1747963048539,0.20677816,111230.0,111220.0,6.79788292]
[1747963048812,0.20677816,111230.0,111220.0,6.78889214]
[1747963048933,0.20677807,111230.0,111220.0,6.78889214]
[1747963052497,0.18879789,111230.0,111220.0,6.7607923]
[1747963053025,0.23769789,111230.0,111220.0,6.7607923]
[1747963053252,0.21349789,111230.0,111220.0,6.7607923]
[1747963053455,0.18879789,111230.0,111220.0,6.76978316]
[1747963054466,0.18879789,111230.0,111220.0,6.75180128]
[1747963054871,0.18879789,111230.0,111220.0,6.7607923]
[1747963055071,0.18879789,111230.0,111220.0,6.76978324]
[1747963055271,0.1798076,111230.0,111220.0,6.74281018]
[1747963055472,0.1798076,111230.0,111220.0,6.75180136]
[1747963056183,0.1798076,111230.0,111220.0,6.76079238]
[1747963057013,0.1798076,111230.0,111220.0,6.76978324]
[1747963058098,0.1798076,111230.0,111220.0,7.12941324]
[1747963059291,0.18879781,111230.0,111220.0,7.12941324]
[1747963059492,0.18879781,111230.0,111220.0,7.16650402]
[1747963062092,0.18879781,111230.0,111220.0,7.15450402]
[1747963062292,0.18879781,111230.0,111220.0,7.13840402]
[1747963063311,0.18879781,111230.0,111220.0,7.13640402]
[1747963063525,0.01798018,111230.0,111220.0,7.17449464]
[1747963063726,0.02797047,111230.0,111220.0,7.17849464]
[1747963064427,0.0189797,111230.0,111220.0,7.17849464]
[1747963064663,0.02796991,111230.0,111220.0,7.17849464]
[1747963064848,0.0369602,111230.0,111220.0,7.17849464]
[1747963065051,0.02796991,111230.0,111220.0,7.17849464]
[1747963065282,0.001,111230.0,111220.0,7.17849464]
[1747963065636,0.02796959,111230.0,111220.0,7.17849464]
[1747963066490,0.02796959,111230.0,111220.0,7.20719449]
[1747963066700,0.0369598,111230.0,111220.0,7.20719449]
[1747963066909,0.0369598,111230.0,111220.0,7.17909449]
[1747963067114,0.22358786,111230.0,111220.0,6.68487626]
[1747963067315,0.24768786,111230.0,111220.0,7.15208199]
[1747963067680,0.24768786,111230.0,111220.0,7.12338214]
[1747963067885,0.24768786,111230.0,111220.0,7.13237292]
[1747963068227,0.22358786,111230.0,111220.0,7.13237292]
[1747963069238,0.24768786,111230.0,111220.0,7.12338214]
[1747963069444,0.24768786,111230.0,111220.0,7.13237292]
[1747963069665,0.24156853,111230.0,111220.0,7.14136362]
[1747963069949,0.01898026,111230.0,111220.0,7.15035424]
[1747963070917,0.01898026,111230.0,111220.0,7.17905409]
[1747963071125,0.02797055,111230.0,111220.0,7.17905409]
[1747963071329,0.00898932,111240.0,111230.0,0.53778794]
[1747963071534,0.19777017,111240.0,111230.0,5.7199935]
[1747963071736,0.22347017,111240.0,111230.0,6.0796035]
[1747963071912,0.25795925,111240.0,111230.0,6.07960358]
[1747963072061,0.25795925,111240.0,111230.0,6.07960366]
[1747963072656,0.25795925,111240.0,111230.0,6.08959379]
[1747963072873,0.25795925,111240.0,111230.0,6.09159379]
[1747963073416,0.25795925,111240.0,111230.0,6.10058384]
[1747963076321,0.25795925,111240.0,111230.0,6.10957381]
[1747963076732,0.24897017,111240.0,111230.0,6.10058384]
[1747963076931,0.24897017,111240.0,111230.0,6.10058352]
[1747963077167,0.25795974,111240.0,111230.0,6.10058352]
[1747963077524,0.25795974,111240.0,111230.0,6.10957341]
[1747963077966,0.0269683,111240.0,111230.0,6.10957341]
[1747963078172,0.20675974,111240.0,111230.0,6.1005832]
[1747963078375,0.01797873,111240.0,111230.0,6.1005832]
[1747963078553,0.01797873,111240.0,111230.0,6.10957301]
[1747963079704,0.02696822,111240.0,111230.0,6.10957301]
[1747963080973,0.06088844,111250.0,111240.0,0.00898949]
[1747963081182,0.25864059,111250.0,111240.0,6.26575703]
[1747963081387,0.25864059,111250.0,111240.0,6.61410093]
[1747963081591,0.25864059,111250.0,111240.0,6.62309034]
[1747963084471,0.24066396,111250.0,111240.0,0.99466]
[1747963084671,0.24066396,111250.0,111240.0,1.33466]
[1747963086869,0.24066396,111250.0,111240.0,0.70158]
[1747963087076,0.24066396,111250.0,111240.0,6.42732]
[1747963094028,0.24066396,111250.0,111240.0,6.81516]
[1747963095562,0.25864051,111250.0,111240.0,7.01293017]
[1747963095765,0.25864051,111250.0,111240.0,7.00394093]
[1747963095958,0.24066388,111250.0,111240.0,7.01293034]
[1747963096080,0.23167528,111250.0,111240.0,7.01293034]
[1747963096312,0.23167528,111250.0,111240.0,6.74357034]
[1747963096518,0.23167528,111250.0,111240.0,7.01293034]
[1747963096726,0.06987671,111250.0,111240.0,7.03090858]
[1747963096931,0.01997647,111250.0,111240.0,7.12045414]
[1747963097356,0.01997647,111250.0,111240.0,7.14915399]
[1747963097936,0.01098811,111250.0,111240.0,7.17935399]
[1747963098175,0.01997638,111250.0,111240.0,7.17935399]
[1747963098374,0.01098811,111250.0,111240.0,7.17935399]
[1747963098575,0.01997638,111250.0,111240.0,7.17935399]
[1747963098793,0.01997638,111250.0,111240.0,7.14815399]
[1747963098956,0.02896474,111250.0,111240.0,7.14715399]
[1747963099160,0.02896474,111250.0,111240.0,7.15215399]
[1747963099633,0.06305334,111250.0,111240.0,7.15215399]
[1747963100847,0.02896474,111250.0,111240.0,7.15215399]
[1747963100987,0.03795326,111250.0,111240.0,7.15215399]
[1747963101189,0.04694186,111250.0,111240.0,7.15215399]
[1747963103036,0.02896474,111250.0,111240.0,7.15215399]
[1747963103224,0.03795334,111250.0,111240.0,7.15215399]
[1747963105234,0.02896474,111250.0,111240.0,7.15215399]
[1747963105491,0.03795334,111250.0,111240.0,7.15215399]
[1747963105898,0.04694202,111250.0,111240.0,7.15215399]
[1747963106108,0.07064202,111250.0,111240.0,7.15215399]
[1747963106983,0.07064202,111250.0,111240.0,6.88279399]
[1747963107200,0.07064202,111250.0,111240.0,7.15211399]
[1747963107424,0.09424202,111250.0,111240.0,7.15211399]
[1747963107913,0.27401795,111250.0,111240.0,7.15211399]
[1747963108123,0.03795391,111250.0,111240.0,7.15211399]
[1747963109023,0.06215391,111250.0,111240.0,7.15211399]
[1747963109451,0.0441763,111250.0,111240.0,7.15211399]
[1747963109607,0.01098803,111250.0,111240.0,7.15211399]
[1747963109808,0.0199763,111250.0,111240.0,7.15211399]
[1747963110208,0.02896466,111250.0,111240.0,7.15211399]
[1747963110413,0.0199763,111250.0,111240.0,7.15211399]
[1747963110617,0.02896482,111250.0,111240.0,7.15211399]
[1747963110817,0.02896474,111250.0,111240.0,7.15211399]
[1747963111182,0.02896474,111250.0,111240.0,7.15011399]
[1747963111382,0.02896474,111250.0,111240.0,7.14911399]
[1747963111595,0.09564186,111250.0,111240.0,7.15211399]
[1747963111840,0.26642952,111250.0,111240.0,7.14312499]
[1747963112041,0.27541828,111250.0,111240.0,7.15211415]
[1747963112242,0.26642984,111250.0,111240.0,7.15211415]
[1747963112447,0.0776658,111250.0,111240.0,7.16110315]
[1747963112850,0.06867712,111250.0,111240.0,7.16110315]
[1747963113771,0.07766588,111250.0,111240.0,7.16110315]
[1747963113984,0.0776658,111250.0,111240.0,7.16110315]
[1747963114529,0.06867712,111250.0,111240.0,7.16110315]
[1747963116883,0.05968827,111250.0,111240.0,7.16110315]
[1747963117084,0.01997622,111250.0,111240.0,7.16110315]
[1747963117488,0.02896458,111250.0,111240.0,7.16110315]
[1747963118643,0.05446458,111250.0,111240.0,7.16110315]
[1747963118868,0.08735318,111250.0,111240.0,7.16110315]
[1747963119340,0.0873531,111250.0,111240.0,7.16110315]
[1747963121070,0.07836458,111250.0,111240.0,7.16110315]
[1747963121270,0.27611698,111250.0,111240.0,6.84683685]
[1747963121498,0.2491524,111250.0,111240.0,6.23689985]
[1747963121726,0.2491524,111250.0,111240.0,3.35255985]
[1747963121927,0.2491524,111250.0,111240.0,3.23615985]
[1747963122269,0.2491524,111250.0,111240.0,2.86746]
[1747963122444,0.2491524,111250.0,111240.0,3.20746]
[1747963122885,0.2491524,111250.0,111240.0,3.20446]
[1747963123639,0.2491524,111250.0,111240.0,2.49304]
[1747963124013,0.33869796,111250.0,111240.0,1.06154]
[1747963124152,0.33969796,111250.0,111240.0,1.03734]
[1747963124339,0.33969796,111250.0,111240.0,1.30666]
[1747963124541,0.39969796,111250.0,111240.0,1.64666]
[1747963124789,0.39969796,111250.0,111240.0,1.30666]
[1747963125152,0.39969796,111250.0,111240.0,1.64666]
[1747963125389,0.40269796,111250.0,111240.0,1.64666]
[1747963125588,0.40269796,111250.0,111240.0,1.64566]
[1747963125828,0.40269796,111250.0,111240.0,1.4352533]
[1747963126476,0.40269796,111250.0,111240.0,1.4352933]
[1747963127058,0.40569796,111250.0,111240.0,1.4352933]
[1747963129717,0.40569796,111250.0,111240.0,1.1659333]
[1747963129921,0.42023881,111250.0,111240.0,0.8028133]
[1747963130121,0.42023881,111250.0,111240.0,1.3604]
[1747963131436,0.42023881,111250.0,111240.0,1.0204]
[1747963134040,0.42023881,111250.0,111240.0,1.02044]
[1747963137683,1.10623881,111250.0,111240.0,1.02044]
[1747963140789,1.10623881,111250.0,111240.0,1.02056]
[1747963141644,1.10323881,111250.0,111240.0,1.02056]
[1747963141858,1.10423881,111250.0,111240.0,1.02056]
[1747963142059,1.10823881,111250.0,111240.0,1.02056]
[1747963143492,0.42223881,111250.0,111240.0,1.02056]
[1747963143699,0.42223881,111250.0,111240.0,0.63272]
[1747963144122,0.24458778,111230.0,111220.0,0.72796]
[1747963144323,0.33413334,111230.0,111220.0,1.3602]
[1747963146122,0.33413334,111230.0,111220.0,1.3612]
[1747963153425,0.28733334,111230.0,111220.0,1.4077]
[1747963156425,0.28733334,111230.0,111220.0,1.3841]
[1747963157068,0.28733334,111230.0,111220.0,1.4076]
[1747963158639,0.28733334,111230.0,111220.0,1.3612]
[1747963160816,0.19778778,111230.0,111220.0,1.3612]
[1747963160996,0.19778778,111230.0,111220.0,6.50046]
[1747963163957,0.19778778,111230.0,111220.0,6.23102]
[1747963164165,0.19778778,111230.0,111220.0,4.1253]
[1747963164422,0.19778778,111230.0,111220.0,3.7853]
[1747963164609,0.19778778,111230.0,111220.0,3.7614]
[1747963164814,0.19778778,111230.0,111220.0,3.6182]
[1747963165127,0.19778778,111230.0,111220.0,3.0584]
[1747963167945,0.19778778,111230.0,111220.0,3.0813]
[1747963168852,0.19778778,111230.0,111220.0,3.1052]
[1747963169972,0.19778778,111230.0,111220.0,3.0584]
[1747963172108,0.19778778,111230.0,111220.0,1.9206]
[1747963173423,0.33393334,111230.0,111220.0,0.75148]
[1747963173629,0.33393334,111230.0,111220.0,1.02092]
[1747963176511,0.33393334,111230.0,111220.0,1.36092]
[1747963178167,0.33393334,111230.0,111220.0,0.36252]
[1747963179574,0.33393334,111230.0,111220.0,0.63196]
[1747963181769,0.33393334,111230.0,111220.0,0.36252]
[1747963181983,0.33393334,111230.0,111220.0,0.63196]
[1747963185180,0.33393334,111230.0,111220.0,1.01992]
[1747963186950,0.34847419,111230.0,111220.0,1.01996]
[1747963196711,0.34847419,111230.0,111220.0,0.75052]
[1747963196948,0.34847419,111230.0,111220.0,0.38796]
[1747963197153,0.34847419,111230.0,111220.0,1.02004]
[1747963199217,0.33393334,111230.0,111220.0,1.02004]
[1747963200231,0.39393334,111230.0,111220.0,1.02004]
[1747963200481,0.34733334,111230.0,111220.0,1.06484]
[1747963200688,0.25778778,111230.0,111220.0,1.06484]
[1747963202822,0.25778778,111230.0,111220.0,1.40484]
[1747963203048,0.19778778,111230.0,111220.0,6.68631487]
[1747963203262,0.0179797,111230.0,111220.0,6.79384191]
[1747963203466,0.0359602,111230.0,111220.0,6.79384191]
[1747963203681,0.22475818,111230.0,111220.0,6.79384207]
[1747963203887,0.21576845,111230.0,111220.0,6.80283277]
[1747963204511,0.21576845,111230.0,111220.0,6.79384207]
[1747963204899,0.18879541,111240.0,111230.0,0.24358811]
[1747963205103,0.20677422,111240.0,111230.0,5.33624811]
[1747963205443,0.20677422,111240.0,111230.0,5.34523848]
[1747963205733,0.20677422,111240.0,111230.0,5.44377417]
[1747963206113,0.20777422,111240.0,111230.0,5.44377417]
[1747963206754,0.20777422,111240.0,111230.0,5.78377417]
[1747963207082,0.01897824,111240.0,111230.0,5.79276406]
[1747963207294,0.009989,111240.0,111230.0,5.79276349]
[1747963207501,0.01797816,111240.0,111230.0,5.79276349]
[1747963207757,0.1997524,111250.0,111240.0,0.58357017]
[1747963207902,0.20874116,111250.0,111240.0,6.03521581]
[1747963208575,0.20874132,111250.0,111240.0,6.02622649]